fUST/lending_fUST_20250228
["ID","MTS","AMOUNT","RATE_DAILY","PERIOD"]
[354814695,1740714629446,-500.0,0.00055137,120]
[354814696,1740714629471,-250.0,0.00055137,120]
[354814697,1740714629496,-500.0,0.00055137,120]
[354814698,1740714629522,-500.0,0.00055137,120]
[354814699,1740714629548,-500.0,0.00055137,120]
[354814700,1740714629573,-500.0,0.00055137,120]
[354814701,1740714629599,-500.0,0.00055137,120]
[354814702,1740714629626,-500.0,0.00055137,120]
[354814703,1740714629651,-500.0,0.00055137,120]
[354814704,1740714629675,-500.0,0.00055137,120]
[354814705,1740714629700,-416.63486096,0.00055137,120]
[354814706,1740714629724,-500.0,0.00055137,120]
[354814707,1740714629749,-500.0,0.00055137,120]
[354814708,1740714629776,-500.0,0.00055137,120]
[354814709,1740714629801,-504.54589052,0.00055137,120]
[354814710,1740714629825,-500.0,0.00055137,120]
[354814711,1740714629852,-500.0,0.00055137,120]
[354814712,1740714629879,-500.0,0.00055137,120]
[354814713,1740714629905,-512.89711456,0.00055137,120]
[354814714,1740714630015,-500.0,0.00055137,120]
[354814715,1740714630044,-500.0,0.00055137,120]
[354814716,1740714630069,-500.0,0.00055137,120]
[354814717,1740714630094,-500.0,0.00055137,120]
[354814718,1740714630119,-500.0,0.00055137,120]
[354814719,1740714630145,-500.0,0.00055137,120]
[354814720,1740714630169,-500.0,0.00055137,120]
[354814721,1740714630196,-500.0,0.00055137,120]
[354814722,1740714630223,-500.0,0.00055137,120]
[354814723,1740714630248,-500.0,0.00055137,120]
[354814724,1740714630273,-500.0,0.00055137,120]
[354814725,1740714630297,-500.0,0.00055137,120]
[354814726,1740714630321,-500.0,0.00055137,120]
[354814727,1740714630345,-500.0,0.00055137,120]
[354814728,1740714630369,-500.0,0.00055137,120]
[354814729,1740714630393,-500.0,0.00055137,120]
[354814730,1740714630419,-500.0,0.00055137,120]
[354814731,1740714630447,-500.0,0.00055137,120]
[354814732,1740714630477,-500.0,0.00055137,120]
[354814733,1740714630502,-500.0,0.00055137,120]
[354814734,1740714630528,-500.0,0.00055137,120]
[354814735,1740714630552,-500.0,0.00055137,120]
[354814736,1740714630578,-500.0,0.00055137,120]
[354814737,1740714630603,-500.0,0.00055137,120]
[354814738,1740714630628,-500.0,0.00055137,120]
[354814739,1740714630652,-500.0,0.00055137,120]
[354814740,1740714630678,-500.0,0.00055137,120]
[354814741,1740714630706,-500.0,0.00055137,120]
[354814742,1740714630731,-500.0,0.00055137,120]
[354814743,1740714630756,-500.0,0.00055137,120]
[354814744,1740714630781,-500.0,0.00055137,120]
[354814745,1740714630807,-500.0,0.00055137,120]
[354814746,1740714630832,-500.0,0.00055137,120]
[354814747,1740714630860,-503.56257361,0.00055137,120]
[354814748,1740714630887,-500.0,0.00055137,120]
[354814749,1740714630911,-500.0,0.00055137,120]
[354814750,1740714630936,-506.34206355,0.00055137,120]
[354814751,1740714630961,-500.0,0.00055137,120]
[354814752,1740714630987,-540.39549489,0.00055137,120]
[354814753,1740714631013,-500.0,0.00055137,120]
[354814754,1740714631040,-500.0,0.00055137,120]
[354814755,1740714631065,-500.0,0.00055137,120]
[354814756,1740714631091,-500.0,0.00055137,120]
[354814757,1740714631116,-500.0,0.00055137,120]
[354814758,1740714631141,-500.0,0.00055137,120]
[354814759,1740714631166,-500.0,0.00055137,120]
[354814761,1740714631192,-500.0,0.00055137,120]
[354814762,1740714631217,-511.93528897,0.00055137,120]
[354814764,1740714631242,-500.0,0.00055137,120]
[354814765,1740714631267,-555.77,0.00055137,120]
[354814766,1740714631291,-500.0,0.00055137,120]
[354814769,1740714631316,-500.0,0.00055137,120]
[354814770,1740714631341,-506.58206265,0.00055137,120]
[354814772,1740714631366,-500.0,0.00055137,120]
[354814774,1740714631391,-500.0,0.00055137,120]
[354814775,1740714631416,-500.0,0.00055137,120]
[354814776,1740714631442,-500.0,0.00055137,120]
[354814777,1740714631465,-500.0,0.00055137,120]
[354814778,1740714631495,-500.0,0.00055137,120]
[354814779,1740714631520,-693.81,0.00055137,120]
[354814782,1740714631544,-402.09795036,0.00055137,120]
[354814785,1740714631667,-418.66492704,0.00055137,120]
[354814789,1740714631693,-500.0,0.00055137,120]
[354814791,1740714631717,-500.0,0.00055137,120]
[354814792,1740714631742,-507.23646609,0.00055137,120]
[354814793,1740714631767,-500.0,0.00055137,120]
[354814794,1740714631791,-500.0,0.00055137,120]
[354814795,1740714631816,-500.0,0.00055137,120]
[354814796,1740714631842,-500.0,0.00055137,120]
[354814797,1740714631868,-500.0,0.00055137,120]
[354814798,1740714631894,-500.0,0.00055137,120]
[354814799,1740714631920,-502.92483552,0.00055137,120]
[354814801,1740714631948,-500.0,0.00055137,120]
[354814802,1740714631973,-500.0,0.00055137,120]
[354814803,1740714631998,-500.0,0.00055137,120]
[354814805,1740714632023,-500.0,0.00055137,120]
[354814807,1740714632047,-500.0,0.00055137,120]
[354814808,1740714632072,-580.15,0.00055137,120]
[354814809,1740714632096,-500.0,0.00055137,120]
[354814810,1740714632122,-500.0,0.00055137,120]
[354814811,1740714632148,-500.0,0.00055137,2]
[354814812,1740714632174,-500.0,0.00055137,120]
[354814813,1740714632200,-500.0,0.00055137,120]
[354814814,1740714632225,-346.22544091,0.00055137,120]
[354814815,1740714632250,-500.0,0.00055137,120]
[354814816,1740714632284,-500.0,0.00055137,120]
[354814817,1740714632315,-510.0185972,0.00055137,120]
[354814818,1740714632341,-175.04347638,0.00055137,120]
[354814819,1740714632369,-500.0,0.00055137,120]
[354814820,1740714632395,-506.83490174,0.00055137,120]
[354814821,1740714632422,-500.0,0.00055137,120]
[354814822,1740714632450,-500.0,0.00055137,120]
[354814823,1740714632476,-500.0,0.00055137,120]
[354814824,1740714632504,-500.0,0.00055137,120]
[354814825,1740714632530,-500.0,0.00055137,120]
[354814826,1740714632559,-527.86,0.00055137,120]
[354814827,1740714632586,-500.0,0.00055137,120]
[354814828,1740714632613,-500.0,0.00055137,120]
[354814829,1740714632640,-498.87541347,0.00055137,120]
[354814830,1740714632665,-223.16292157,0.00055137,120]
[354814831,1740714632691,-500.0,0.00055137,120]
[354814832,1740714632718,-500.0,0.00055137,120]
[354814833,1740714632746,-500.0,0.00055137,120]
[354814834,1740714632773,-500.0,0.00055137,120]
[354814835,1740714632799,-500.0,0.00055137,120]
[354814836,1740714632824,-517.21841179,0.00055137,120]
[354814837,1740714632848,-500.0,0.00055137,120]
[354814838,1740714632876,-503.93916999,0.00055137,120]
[354814839,1740714632903,-500.0,0.00055137,120]
[354814840,1740714632929,-375.19364136,0.00055137,120]
[354814841,1740714632957,-500.0,0.00055137,120]
[354814842,1740714632983,-500.0,0.00055137,120]
[354814843,1740714633009,-500.0,0.00055137,120]
[354814844,1740714633041,-500.0,0.00055137,120]
[354814845,1740714633069,-1497.1,0.00055137,120]
[354814846,1740714633097,-500.0,0.00055137,120]
[354814847,1740714633125,-513.95263367,0.00055137,120]
[354814848,1740714633153,-500.0,0.00055137,120]
[354814849,1740714633180,-500.0,0.00055137,120]
[354814850,1740714633325,-500.0,0.00055137,120]
[354814851,1740714633354,-170.03287449,0.00055137,120]
[354814852,1740714633381,-500.0,0.00055137,120]
[354814853,1740714633407,-500.0,0.00055137,120]
[354814854,1740714633435,-1195.75,0.00055137,120]
[354814855,1740714633460,-615.74906651,0.00055137,120]
[354814856,1740714633484,-500.0,0.00055137,120]
[354814857,1740714633510,-500.0,0.00055137,120]
[354814858,1740714633535,-500.0,0.00055137,120]
[354814859,1740714633562,-1098.3,0.00055137,120]
[354814860,1740714633588,-500.0,0.00055137,120]
[354814861,1740714633613,-500.0,0.00055137,120]
[354814862,1740714633642,-500.0,0.00055137,120]
[354814863,1740714633667,-460.22801955,0.00055137,120]
[354814864,1740714633693,-500.0,0.00055137,120]
[354814865,1740714633718,-500.0,0.00055137,120]
[354814866,1740714633743,-556.98308263,0.00055137,120]
[354814867,1740714633768,-537.87,0.00055137,120]
[354814868,1740714633794,-500.0,0.00055137,120]
[354814869,1740714633818,-503.95144751,0.00055137,120]
[354814870,1740714633845,-500.0,0.00055137,120]
[354814871,1740714633874,-500.0,0.00055137,120]
[354814872,1740714633902,-500.0,0.00055137,120]
[354814873,1740714633930,-500.0,0.00055137,120]
[354814874,1740714633957,-500.0,0.00055137,120]
[354814875,1740714633983,-500.0,0.00055137,120]
[354814876,1740714634008,-500.0,0.00055137,120]
[354814877,1740714634034,-500.0,0.00055137,120]
[354814878,1740714634060,-500.0,0.00055137,120]
[354814879,1740714634087,-500.0,0.00055137,120]
[354814880,1740714634112,-500.0,0.00055137,120]
[354814881,1740714634138,-500.0,0.00055137,120]
[354814882,1740714634164,-502.64231476,0.00055137,120]
[354814883,1740714634191,-796.92,0.00055137,120]
[354814884,1740714634217,-500.0,0.00055137,120]
[354814885,1740714634243,-1364.8,0.00055137,120]
[354814886,1740714634269,-500.0,0.00055137,120]
[354814887,1740714634295,-506.39124437,0.00055137,120]
[354814888,1740714634318,-500.0,0.00055137,120]
[354814889,1740714634343,-500.0,0.00055137,120]
[354814890,1740714634369,-503.26557077,0.00055137,120]
[354814891,1740714634395,-500.0,0.00055137,120]
[354814892,1740714634421,-500.0,0.00055137,120]
[354814893,1740714634447,-500.0,0.00055137,120]
[354814894,1740714634473,-500.0,0.00055137,120]
[354814895,1740714634499,-500.0,0.00055137,120]
[354814896,1740714634524,-500.0,0.00055137,120]
[354814897,1740714634550,-504.62970207,0.00055137,120]
[354814898,1740714634575,-503.1852407,0.00055137,120]
[354814899,1740714634600,-505.87688269,0.00055137,120]
[354814900,1740714634640,-500.0,0.00055137,2]
[354814901,1740714634666,-505.6071462,0.00055137,120]
[354814902,1740714634693,-504.11793139,0.00055137,120]
[354814903,1740714634719,-500.0,0.00055137,120]
[354814904,1740714634744,-500.0,0.00055137,120]
[354814905,1740714634769,-500.0,0.00055137,120]
[354814906,1740714634794,-505.23390745,0.00055137,120]
[354814907,1740714634938,-500.0,0.00055137,120]
[354814908,1740714634965,-502.09386137,0.00055137,120]
[354814909,1740714634991,-500.80480962,0.00055137,120]
[354814910,1740714635016,-500.0,0.00055137,120]
[354814911,1740714635042,-500.0,0.00055137,120]
[354814912,1740714635067,-537.66607866,0.00055137,120]
[354814913,1740714635092,-500.0,0.00055137,120]
[354814914,1740714635117,-500.0,0.00055137,120]
[354814915,1740714635142,-500.0,0.00055137,120]
[354814916,1740714635167,-500.0,0.00055137,120]
[354814917,1740714635193,-500.0,0.00055137,120]
[354814918,1740714635218,-500.0,0.00055137,120]
[354814919,1740714635243,-500.0,0.00055137,120]
[354814920,1740714635268,-503.0090842,0.00055137,120]
[354814921,1740714635294,-500.0,0.00055137,120]
[354814922,1740714635320,-500.0,0.00055137,120]
[354814923,1740714635345,-500.0,0.00055137,120]
[354814924,1740714635371,-500.0,0.00055137,120]
[354814925,1740714635397,-503.32289268,0.00055137,120]
[354814926,1740714635422,-500.0,0.00055137,120]
[354814927,1740714635449,-504.48006284,0.00055137,120]
[354814928,1740714635474,-500.0,0.00055137,120]
[354814929,1740714635498,-500.0,0.00055137,120]
[354814930,1740714635523,-500.0,0.00055137,120]
[354814931,1740714635547,-500.0,0.00055137,120]
[354814932,1740714635571,-394.47669321,0.00055137,120]
[354814933,1740714635597,-2066.9,0.00055137,15]
[354814934,1740714635624,-500.0,0.00055137,120]
[354814935,1740714635650,-500.0,0.00055137,120]
[354814936,1740714635676,-500.0,0.00055137,120]
[354814937,1740714635702,-500.0,0.00055137,120]
[354814938,1740714635727,-500.0,0.00055137,120]
[354814939,1740714635751,-500.0,0.00055137,120]
[354814940,1740714635774,-500.0,0.00055137,120]
[354814941,1740714635799,-500.0,0.00055137,120]
[354814942,1740714635825,-500.0,0.00055137,120]
[354814943,1740714635852,-500.0,0.00055137,120]
[354814944,1740714635877,-500.0,0.00055137,120]
[354814946,1740714635903,-255.85633506,0.00055137,120]
[354814947,1740714635928,-444.24224506,0.00055137,120]
[354814948,1740714635954,-500.0,0.00055137,120]
[354814949,1740714635979,-500.0,0.00055137,120]
[354814950,1740714636003,-500.0,0.00055137,120]
[354814951,1740714636027,-517.19219083,0.00055137,120]
[354814952,1740714636052,-500.0,0.00055137,120]
[354814953,1740714636078,-500.0,0.00055137,120]
[354814954,1740714636103,-500.0,0.00055137,120]
[354814955,1740714636129,-500.0,0.00055137,120]
[354814956,1740714636154,-500.0,0.00055137,120]
[354814957,1740714636179,-500.0,0.00055137,120]
[354814958,1740714636206,-553.82,0.00055137,120]
[354814959,1740714636232,-501.52044205,0.00055137,120]
[354814960,1740714636257,-500.0,0.00055137,120]
[354814961,1740714636282,-500.0,0.00055137,120]
[354814962,1740714636401,-574.15,0.00055137,120]
[354814963,1740714636429,-636.28,0.00055137,120]
[354814964,1740714636457,-500.0,0.00055137,120]
[354814965,1740714636483,-500.0,0.00055137,120]
[354814966,1740714636507,-500.0,0.00055137,120]
[354814967,1740714636532,-500.0,0.00055137,120]
[354814968,1740714636558,-500.0,0.00055137,120]
[354814969,1740714636584,-632.43,0.00055137,120]
[354814970,1740714636609,-500.0,0.00055137,120]
[354814971,1740714636634,-500.0,0.00055137,120]
[354814972,1740714636659,-507.84484317,0.00055137,120]
[354814973,1740714636686,-500.0,0.00055137,120]
[354814974,1740714636712,-500.0,0.00055137,120]
[354814975,1740714636738,-500.0,0.00055137,120]
[354814976,1740714636762,-500.0,0.00055137,120]
[354814977,1740714636787,-593.9,0.00055137,120]
[354814978,1740714636812,-949.38,0.00055137,120]
[354814979,1740714636838,-500.0,0.00055137,120]
[354814980,1740714636864,-500.0,0.00055137,120]
[354814981,1740714636889,-500.0,0.00055137,120]
[354814982,1740714636913,-500.0,0.00055137,120]
[354814983,1740714636939,-500.0,0.00055173,7]
[354814984,1740714636966,-500.0,0.00055173,15]
[354814985,1740714636991,-500.0,0.00055173,15]
[354814986,1740714637015,-367.46919577,0.00055173,15]
[354814987,1740714637040,-500.0,0.00055173,14]
[354814988,1740714637065,-500.0,0.00055173,15]
[354814989,1740714637090,-500.0,0.00055173,14]
[354814990,1740714637115,-400.84808945,0.00055335,120]
[354814991,1740714637140,-500.0,0.00055335,120]
[354814992,1740714637165,-500.0,0.00055547,35]
[354814993,1740714637192,-161.0,0.000557,120]
[354814994,1740714637220,-383.43277855,0.000559,13]
[354814996,1740714637246,-500.0,0.00056095,40]
[354814997,1740714637271,-500.0,0.00056643,45]
[354814998,1740714637297,-2262.0,0.00057,120]
[354814999,1740714637322,-4524.0,0.00057,120]
[354815000,1740714637347,-500.0,0.00057191,50]
[354815001,1740714637375,-500.0,0.00057739,55]
[354815004,1740714637400,-158.9,0.00058,30]
[354815008,1740714637425,-349.13354057,0.00058,15]
[354815011,1740714637450,-183.86466152,0.00058235,114]
[354815013,1740714637475,-500.0,0.00058287,60]
[354815016,1740714637502,-161.0,0.000586,120]
[354815019,1740714637527,-500.0,0.00058835,65]
[354815020,1740714637553,-2262.0,0.00059,120]
[354815021,1740714637578,-4524.0,0.00059,120]
[354815022,1740714637603,-500.0,0.00059383,70]
[354815023,1740714637628,-500.0,0.00059931,75]
[354815024,1740714637653,-500.0,0.00060479,80]
[354815025,1740714637679,-3697.16,0.00060515,120]
[354815027,1740714637705,-1000.0,0.00060652,7]
[354815028,1740714637730,-1000.0,0.00060652,15]
[354815029,1740714637836,-1000.0,0.00060652,14]
[354815030,1740714637867,-1000.0,0.00060652,15]
[354815031,1740714637894,-500.0,0.00060652,14]
[354815034,1740714637920,-2262.0,0.00061,120]
[354815035,1740714637947,-4524.0,0.00061,120]
[354815036,1740714637973,-363.32125364,0.00061027,85]
[354815037,1740714637998,-161.0,0.000615,120]
[354815038,1740714638025,-2262.0,0.00063,120]
[354815039,1740714638050,-4524.0,0.00063,120]
[354815040,1740714638074,-500.0,0.00063013,120]
[354815041,1740714638099,-324.3,0.000641,2]
[354815042,1740714638124,-54359.86,0.000641,30]
[354815043,1740714638148,-161.0,0.000644,120]
[354815044,1740714638172,-239.81,0.000649,30]
[354815045,1740714638198,-222.22,0.000649,30]
[354815046,1740714638222,-1181.57,0.000649,30]
[354815047,1740714638246,-162.01083521,0.000649,101]
[354815048,1740714638272,-263623.627247,0.000649,2]
[354815049,1740714638296,-2262.0,0.00065,120]
[354815050,1740714638320,-4524.0,0.00065,120]
[354815051,1740714638346,-3697.16,0.00065994,120]
[354815052,1740714638706,532.0,0.00055,120]
[354815053,1740714638739,1563.38,0.00055026,10]
[354815054,1740714638931,532.0,0.00057,120]
[354815055,1740714639008,502.04592947,0.00055036,120]
[354815056,1740714639108,532.0,0.00059,120]
[354815057,1740714639305,532.0,0.00061,120]
[354815059,1740714639448,532.0,0.00063,120]
[354815063,1740714639727,532.0,0.00065,120]
[354815065,1740714640239,1302.81,0.0005899,10]
[354815066,1740714640279,-163.0,0.00067,120]
[354815067,1740714640289,-137.0,0.00067,120]
[354815068,1740714640300,-933.12684086,0.00067,120]
[354815069,1740714640395,-1191.87315914,0.00067,120]
[354815070,1740714640405,-3385.45270429,0.00067,120]
[354815071,1740714640578,-1138.54729571,0.00067,120]
[354815072,1740714640587,-211.4527043,0.00067,120]
[354815073,1740714640599,-52.5472957,0.00067,120]
[354815074,1740714640608,-532.0,0.00067,120]
[354815075,1740714640618,-350.4527043,0.000671,15]
[354815076,1740714640630,-149.5472957,0.000671,15]
[354815077,1740714640639,-500.0,0.000671,14]
[354815078,1740714640648,-161.0,0.000673,120]
[354815079,1740714640658,-150.0,0.0006749,15]
[354815080,1740714640667,-500.0,0.0006749,15]
[354815081,1740714640676,-501.32003459,0.0006749,14]
[354815082,1740714640686,-500.0,0.0006749,15]
[354815083,1740714640696,-500.0,0.0006749,14]
[354815084,1740714640706,-500.0,0.0006749,14]
[354815085,1740714640715,-250.0,0.00068038,15]
[354815086,1740714640724,-666.0,0.00068493,2]
[354815087,1740714640733,-666.0,0.00068493,120]
[354815088,1740714640742,-1000.0,0.00068493,60]
[354815089,1740714640751,-1000.0,0.00068493,120]
[354815090,1740714640761,-1000.0,0.00068493,2]
[354815091,1740714640770,-223.72,0.00068493,120]
[354815092,1740714640780,-350.0,0.00068586,15]
[354815093,1740714640790,-450.0,0.00069134,15]
[354815094,1740714640799,-550.0,0.00069682,15]
[354815095,1740714640808,-1500.0,0.00070671,7]
[354815096,1740714640817,-1500.0,0.00070671,14]
[354815097,1740714640826,-15336.73008272,0.00071,30]
[354815098,1740714640839,-34663.26991728,0.00071,30]
[354815099,1740714640849,-15598.462801,0.00071017,120]
[354815100,1740714640861,-150.45,0.00071018,120]
[354815101,1740714640870,-399.198651,0.00071035,10]
[354815102,1740714640879,-500.0,0.00071035,120]
[354815103,1740714640889,-150.45,0.00071035,2]
[354815104,1740714640899,-500.0,0.00071035,120]
[354815105,1740714640908,-150.45,0.00071035,2]
[354815106,1740714640917,-1000.0,0.00071232,2]
[354815107,1740714640926,-150.45,0.00071292,120]
[354815108,1740714640936,-500.0,0.00071309,120]
[354815109,1740714640947,-500.0,0.00071309,120]
[354815110,1740714640956,-3697.16,0.00071473,120]
[354815111,1740714640966,-300.64097637,0.00071566,120]
[354815112,1740714640976,-999.88,0.00071583,120]
[354815113,1740714640986,-500.0,0.00071583,120]
[354815114,1740714640995,-520.915625,0.00071857,120]
[354815115,1740714641005,-1000.0,0.00072579,14]
[354815116,1740714641014,-1000.0,0.00072969,15]
[354815117,1740714641024,-500.0,0.00072969,15]
[354815118,1740714641033,-1000.0,0.00072969,14]
[354815119,1740714641043,-302.0,0.00073971,2]
[354815120,1740714641053,-500.0,0.00073972,120]
[354815121,1740714641063,-431.37588082,0.00075,120]
[354815122,1740714641072,-54359.86,0.000765,30]
[354815123,1740714641082,-1627.61992555,0.0007671,2]
[354815124,1740714641091,-3697.16,0.00076953,120]
[354815125,1740714641101,-666.0,0.00079123,120]
[354815126,1740714641110,-3314.2,0.00079693,120]
[354815127,1740714641121,-568.51,0.00079693,120]
[354815128,1740714641131,-500.0,0.00079694,120]
[354815129,1740714641140,-1000.0,0.00079694,120]
[354815130,1740714641149,-268.42375141,0.00079694,120]
[354815131,1740714641158,-500.0,0.00079694,120]
[354815132,1740714641167,-500.0,0.00079694,120]
[354815133,1740714641177,-572.33,0.00079694,120]
[354815134,1740714641187,-500.0,0.00079694,120]
[354815135,1740714641199,-500.0,0.00079694,120]
[354815136,1740714641208,-972.92,0.000806,7]
[354815137,1740714641217,-20000.0,0.0008102,120]
[354815138,1740714641226,-502.08671611,0.00082191,120]
[354815139,1740714641235,-3697.16,0.00082432,120]
[354815140,1740714641246,-239.81,0.000826,60]
[354815141,1740714641255,-222.22,0.000826,60]
[354815142,1740714641265,-1181.57,0.000826,60]
[354815143,1740714641275,-376.55178791,0.00082988,15]
[354815144,1740714641284,-1500.0,0.00082988,14]
[354815145,1740714641293,-2000.0,0.00083645,7]
[354815146,1740714641303,-2000.0,0.00083645,14]
[354815147,1740714641312,-500.0,0.00083974,120]
[354815148,1740714641321,-700.44124047,0.00086368,120]
[354815149,1740714641330,-174.01076542,0.00087032,120]
[354815150,1740714641340,-3697.16,0.00087912,120]
[354815151,1740714641349,-1271.26,0.000881,60]
[354815152,1740714641358,-666.0,0.00089753,120]
[354815153,1740714641367,-200.0,0.0009,30]
[354815154,1740714641376,-200.0,0.0009,120]
[354815155,1740714641452,-200.0,0.0009,60]
[354815156,1740714641461,-6020.0,0.0009,120]
[354815157,1740714641471,-165.0,0.00091,120]
[354815158,1740714641480,-151.0,0.00091219,120]
[354815159,1740714641489,-2200.0,0.00092709,120]
[354815160,1740714641498,-174.01076542,0.00092966,120]
[354815161,1740714641507,-3697.16,0.00093391,120]
[354815162,1740714641517,-1311.72926194,0.00093493,120]
[354815163,1740714641526,-1109.39493409,0.00093493,120]
[354815164,1740714641536,-150.0,0.00093558,2]
[354815165,1740714641545,-150.292,0.00093558,120]
[354815166,1740714641554,-192.059,0.00093558,120]
[354815167,1740714641563,-397.0,0.00093558,2]
[354815168,1740714641573,-250.0,0.00093558,120]
[354815169,1740714641581,-165.0,0.00095363,120]
[354815170,1740714641590,-417.42535846,0.00095962,14]
[354815171,1740714641600,-150.0,0.00096558,2]
[354815172,1740714641609,-371.564,0.00096558,2]
[354815173,1740714641618,-1216.0,0.00097,120]
[354815174,1740714641628,-151.0,0.000974,120]
[354815175,1740714641637,-54359.86,0.00098,60]
[354815176,1740714641646,-3697.16,0.00098871,120]
[354815177,1740714641656,-174.01,0.000989,120]
[354815178,1740714641666,-7008.57426321,0.000989,2]
[354815179,1740714641675,-359822.28026031,0.00099,30]
[354815180,1740714641684,-2410.30656268,0.00099,30]
[354815181,1740714641694,-167.0,0.00099,120]
[354815182,1740714641711,-167.0,0.00099,120]
[354815183,1740714641720,-167.0,0.00099,120]
[354815184,1740714641730,-300.18947973,0.00099,120]
[354815185,1740714641739,-315.0,0.00099,120]
[354815186,1740714641749,-315.0,0.00099,120]
[354815187,1740714641758,-315.0,0.00099,120]
[354815188,1740714641767,-315.0,0.00099,120]
[354815189,1740714641776,-315.0,0.00099,120]
[354815190,1740714641785,-315.0,0.00099,120]
[354815191,1740714641794,-315.0,0.00099,120]
[354815192,1740714641805,-315.0,0.00099,120]
[354815193,1740714641815,-315.0,0.00099,120]
[354815194,1740714641823,-315.0,0.00099,120]
[354815195,1740714641833,-315.0,0.00099,120]
[354815196,1740714641842,-315.0,0.00099,120]
[354815197,1740714641855,-315.0,0.00099,120]
[354815198,1740714641865,-315.0,0.00099,120]
[354815199,1740714641874,-315.0,0.00099,120]
[354815200,1740714641883,-315.0,0.00099,120]
[354815201,1740714641893,-315.0,0.00099,120]
[354815202,1740714641903,-315.0,0.00099,120]
[354815203,1740714641912,-315.0,0.00099,120]
[354815204,1740714641921,-315.0,0.00099,120]
[354815205,1740714641931,-315.0,0.00099,120]
[354815206,1740714641941,-315.0,0.00099,120]
[354815207,1740714641954,-315.0,0.00099,120]
[354815208,1740714641964,-315.0,0.00099,120]
[354815209,1740714641973,-315.0,0.00099,120]
[354815210,1740714641982,-315.0,0.00099,120]
[354815211,1740714641991,-315.0,0.00099,120]
[354815212,1740714642001,-315.0,0.00099,120]
[354815213,1740714642011,-315.0,0.00099,120]
[354815214,1740714642021,-315.0,0.00099,120]
[354815215,1740714642030,-315.0,0.00099,120]
[354815216,1740714642041,-315.0,0.00099,120]
[354815217,1740714642050,-315.0,0.00099,120]
[354815218,1740714642060,-315.0,0.00099,120]
[354815219,1740714642069,-315.0,0.00099,120]
[354815220,1740714642079,-315.0,0.00099,120]
[354815221,1740714642088,-315.0,0.00099,120]
[354815222,1740714642098,-315.0,0.00099,120]
[354815223,1740714642107,-315.0,0.00099,120]
[354815224,1740714642116,-315.0,0.00099,120]
[354815225,1740714642126,-315.0,0.00099,120]
[354815226,1740714642135,-315.0,0.00099,120]
[354815227,1740714642144,-315.0,0.00099,120]
[354815228,1740714642154,-315.0,0.00099,120]
[354815229,1740714642164,-315.0,0.00099,120]
[354815230,1740714642174,-315.0,0.00099,120]
[354815231,1740714642184,-315.0,0.00099,120]
[354815232,1740714642193,-315.0,0.00099,120]
[354815233,1740714642206,-315.0,0.00099,120]